Cogmind - Beta 15 @@@ ROGUE MODE // 2025.10.18 @ 00:23:30 Player: weras Result: Destroyed by G-34 Mercenary with Small Laser Performance ------------- Evolutions (0) 0 Regions Visited (1) 200 Robots Destroyed (22) 110 Value Destroyed (443) 443 Prototype IDs (0) 0 Alien Tech Used (0) 0 Bonus (0) 0 TOTAL SCORE: 753 Bonus ------- None Cogmind --------- Core Integrity 0/250 Matter 281/300 Energy 100/100 System Corruption 0% Temperature Cool (24) Movement Rolling (105) Ox1 Location -10/Materials Parts ------- > --- POWER (1) -------- (None) > --- PROPULSION (2) --- Wheel Compact Wheel > --- UTILITY (2) ------ High-capacity Storage Unit Structural Scanner > --- WEAPON (2) ------- Assault Rifle Light Assault Rifle > --- INVENTORY (20) --- Improved Heat Sink Small Storage Unit Large Matter Pod (150) Medium Laser Small Laser Light Assault Rifle Mining Laser Peak State ------------ > --- POWER ------------ Ion Engine > --- PROPULSION ------- Wheel Wheel > --- UTILITY ---------- High-capacity Storage Unit Structural Scanner > --- WEAPON ----------- Assault Rifle Light Assault Rifle > --- INVENTORY -------- Light Ion Engine Compact Wheel Heat Sink Improved Heat Sink Small Storage Unit Large Matter Pod Medium Laser Light Assault Rifle [Rating: 8] Favorites ----------- Power Ion Engine Engine Ion Engine Propulsion Wheel Wheel Wheel Utility Structural Scanner Device Structural Scanner Storage High-capacity Storage Unit Weapon Light Assault Rifle Ballistic Gun Light Assault Rifle Build | -11 -10 ------- Run | Yrd Mat Slots Evolved . | . . Power . | . . Propulsion . | . . Utility . | . . Weapon . | . . Parts Attached 12 | 7 5 Power 2 | 2 . Engine 2 | 2 . Core . | . . Reactor . | . . Propulsion 3 | 2 1 Treads . | . . Leg . | . . Wheel 3 | 2 1 Hover . | . . Flight . | . . Utility 3 | 1 2 Device 1 | . 1 Storage 2 | 1 1 Processor . | . . Hackware . | . . Protection . | . . Artifact . | . . Weapon 4 | 2 2 Energy Gun . | . . Energy Cannon . | . . Ballistic Gun 4 | 2 2 Ballistic Cannon . | . . Launcher . | . . Special Weapon . | . . Impact Weapon . | . . Slashing Weapon . | . . Piercing Weapon . | . . Special Melee Weapon . | . . Unidentified Prototypes . | . . Parts Lost 4 | . 4 Power 2 | . 2 Propulsion 1 | . 1 Utility . | . . Weapon 1 | . 1 Highest Loss Streak 2 | . 2 To Critical Strikes . | . . Average Backups 5 | 1 5 Power . | . . Propulsion . | . . Utility 2 | . 2 Weapon 2 | . 2 Tool/Special . | . . Unused Backups 6 | . 6 Power . | . . Propulsion . | . . Utility 3 | . 3 Weapon 3 | . 3 Tool/Special . | . . Average Slot Usage (%) 96 | . 96 Engine 13 | . 13 Wheel 27 | . 27 Device 11 | . 11 Storage 14 | . 14 Ballistic Gun 27 | . 27 Peak Build Rating 8 | 6 8 Average Rating 6 | 4 6 On Entrance 3 | . 6 Naked Turns . | . . Heaviest Build 49 | 13 49 Greatest Support 26 | 20 26 Greatest Overweight (x) 4 | . 4 Average Overweight (x) 1 | . 1 Largest Inventory Capacity 20 | 8 20 Average Capacity 15 | 7 16 Most Carried 8 | 2 8 Average Carried 5 | 1 5 Final Capacity 20 | 8 20 Final Carried 7 | 2 7 Class Distribution -------------------- 100% | Mutant Dominant Class ---------------- Mutant | -10/Materials Resources | -11 -10 ----------- Run | Yrd Mat Matter Collected 713 | 232 481 Remotely . | . . Salvage Created 781 | . 781 Parts 41 | . 41 Haulers Intercepted 2 | . 2 Recyclers Shooed 2 | . 2 Parts Field Recycled . | . . Retrieved Matter . | . . Parts Self-Destructed . | . . Prevented . | . . Kills | -11 -10 ------- Run | Yrd Mat Combat Hostiles Destroyed 15 | . 15 Guns 15 | . 15 Classes Destroyed 5 | . 5 Hauler 2 | . 2 Recycler 2 | . 2 Watcher 3 | . 3 Swarmer 6 | . 6 Grunt 9 | . 9 Best Kill Streak 5 | . 5 Combat Bots Only 3 | . 3 Max Kills in Single Turn 2 | . 2 Gunslinging . | . . Exploded . | . . Melee . | . . Uniques/NPCs Destroyed . | . . Combat | -11 -10 -------- Run | Yrd Mat Hostile Shots Fired 92 | . 92 Missed 22 | . 22 Hits 70 | . 70 Projectile 70 | . 70 Damage Taken 695 | . 695 Core 255 | . 255 Absorbed by Shields . | . . Core Remaining (%) 100 | 100 . Volleys Fired 75 | . 75 Largest 2 | . 2 Hottest 40 | . 40 Shots Fired 146 | . 146 Gun 146 | . 146 Cannon . | . . Launcher . | . . Special . | . . Kinetic 146 | . 146 Thermal . | . . Explosive . | . . Electromagnetic . | . . Robot Hit Streak 9 | . 9 Robot Miss Streak 5 | . 5 Penetration Max . | . . Secondary Targets 3 | . 3 Max Gunslinging Chain 1 | . 1 Shots Hit Robots 97 | . 97 Core Hits 42 | . 42 Critical Kills . | . . Critical Parts Destroyed 1 | . 1 Critical Strikes 1 | . 1 Destroy 1 | . 1 Melee Attacks . | . . Impact . | . . Slashing . | . . Piercing . | . . Sneak Attacks . | . . Combat Hostiles . | . . Follow-up Attacks . | . . Damage Inflicted 1043 | . 1043 Guns 1043 | . 1043 Cannons . | . . Explosions . | . . Melee . | . . Ramming . | . . Kinetic 1043 | . 1043 Thermal . | . . Explosive . | . . Electromagnetic . | . . Impact . | . . Slashing . | . . Piercing . | . . Highest Corruption . | . . Average Corruption . | . . Corruption Purged . | . . Corruption Blocked . | . . Overload Shots . | . . Overflow Damage . | . . Projectiles . | . . Explosions . | . . Melee . | . . Knockbacks . | . . Impact . | . . Kinetic . | . . Secondary . | . . Self-Inflicted Damage . | . . Shots . | . . Rammed . | . . Targets Rammed . | . . Kicked . | . . Crushed . | . . Highest Temperature 18 | . 18 Average Temperature 7 | . 7 Received Heat Transfer 255 | . 255 Siege Activations . | . . Martial Activations . | . . Shielding Activations . | . . Robots Disrupted . | . . Combat Hostiles . | . . Robots Corrupted . | . . Combat Hostiles . | . . Parts Fried . | . . Impact Corruptions . | . . Robots Melted . | . . Combat Hostiles . | . . Parts Melted . | . . Heat Transferred . | . . Parts Sabotaged . | . . Parts Stolen . | . . Parts Stripped . | . . Power Chain Reactions . | . . Alert | -11 -10 ------- Run | Yrd Mat Maximum Alert Level . | . . Low Security (%) 100 | 100 100 Level 1 . | . . Level 2 . | . . Level 3 . | . . Level 4 . | . . Level 5 . | . . High Security . | . . Max Security . | . . Peak Influence 187 | . 187 Initial . | . . Average 78 | . 83 Influence Increases 485 | . 485 Destroy 0b10 Robot/C 300 | . 300 Destroy 0b10 Robot/NC 35 | . 35 Destroy Leader 70 | . 70 Successful Hack 20 | . 20 Lose Combat Pursuer 60 | . 60 Influence Decreases 308 | . 308 Time Decay 268 | . 268 Lost Part 40 | . 40 Squads Dispatched 3 | . 3 Investigation 1 | . 1 Extermination . | . . Reinforcement 2 | . 2 Assault . | . . Garrison . | . . Intercept . | . . Searches Triggered . | . . Construction Impeded . | . . Haulers Reinforced . | . . Active Scanning Responses . | . . Cargo Convoy Interrupts . | . . Stealth | -11 -10 --------- Run | Yrd Mat Distress Signals 1 | . 1 Communications Jammed . | . . Distress Signals . | . . Times Spotted 27 | . 27 Peak Tracking Total 4 | . 4 Tactical Retreats 3 | . 3 Traps | -11 -10 ------- Run | Yrd Mat Traps Triggered 1 | . 1 Indirectly . | . . Trap Hack Attempts . | . . Triggered . | . . Disarmed . | . . Reprogrammed . | . . Reused . | . . Traps Extracted . | . . Installed . | . . Triggered . | . . Machines | -11 -10 ---------- Run | Yrd Mat Machines Disabled . | . . Max in Single Turn . | . . Machines Repaired . | . . Machines Dismantled . | . . Machines Sabotaged . | . . Overloaded Fab Kills . | . . Hacking | -11 -10 --------- Run | Yrd Mat Machines Accessed 3 | . 3 Terminals 3 | . 3 Fabricators . | . . Repair Stations . | . . Recycling Units . | . . Scanalyzers . | . . Garrison Access . | . . Total Hacks 11 | . 11 Successful 8 | . 8 Failed 3 | . 3 Catastrophic . | . . Database Lockouts . | . . Manual 7 | . 7 Terminals 11 | . 11 Fabricators . | . . Repair Stations . | . . Recycling Units . | . . Scanalyzers . | . . Garrison Access . | . . Terminal Hacks 2 | . 2 Robot Analysis 1 | . 1 Locate Traps 1 | . 1 Fabricator Hacks . | . . Repair Station Hacks . | . . Recycling Unit Hacks . | . . Scanalyzer . | . . Garrison Access Hacks . | . . Unauthorized Hacks 6 | . 6 Terminals 6 | . 6 Botnet 3 | . 3 Skim 3 | . 3 Fabricators . | . . Repair Stations . | . . Recycling Units . | . . Scanalyzers . | . . Garrison Access . | . . Data Cores Recovered . | . . Used . | . . Hacking Detections 3 | . 3 Full Trace Events . | . . Feedback Events . | . . Feedback Blocked . | . . Robot Schematics Acquired . | . . Robots Built . | . . Authchips . | . . Time . | . . Total Robot Build Rating . | . . Part Schematics Acquired . | . . Parts Built . | . . Authchips . | . . Time . | . . Total Part Build Rating . | . . Parts Repaired . | . . Time . | . . Parts Recycled . | . . Recycled Matter . | . . Retrieved Matter . | . . Retrieved Components . | . . Parts Scanalyzed . | . . Part Schematics Acquired . | . . Parts Damaged . | . . Bothacking | -11 -10 ------------ Run | Yrd Mat Used RIF Installer . | . . Robots Hacked . | . . Non-combat . | . . Combat . | . . Robot Hacks Applied . | . . Relay Couplers Released . | . . Fabnet Peak Effective % . | . . Robots Rewired . | . . Allies Hacked . | . . Hacks Repelled . | . . Allies | -11 -10 -------- Run | Yrd Mat Total Allies . | . . Largest Group . | . . Highest-Rated Group . | . . Highest-Rated Ally . | . . Total Orders . | . . Ally Attacks . | . . Total Damage . | . . Kills . | . . Allies Corrupted . | . . Allies Melted . | . . Intel | -11 -10 ------- Run | Yrd Mat Active Infowar (turns) 529 | . 529 Structural 529 | . 529 Robot Analysis Total 1 | . 1 Derelict Logs Recovered . | . . Drone Launches . | . . Drone Recoveries . | . . Exploration | -11 -10 ------------- Run | Yrd Mat Turns Passed 662 | 43 619 Spaces Moved 411 | 39 372 Core 2 | 2 . Treads . | . . Legs . | . . Wheels 409 | 37 372 Hover . | . . Flight . | . . Fastest Speed 50 | 50 80 Average Speed 97 | 78 99 Slowest Speed 140 | 80 140 Overloaded Moves . | . . Propulsion Burnouts . | . . Robots Hopped . | . . Potential Cave-ins . | . . Cave-ins Triggered . | . . Exploration Rate (%) 32 | 4 60 Regions Visited 1 Branch Regions . Pre-discovered Areas . | . . Known Exits Taken . | . . Unknown Exits Taken 1 | 1 . Scrap Searched . | . . Spaces Dug . | . . Terrain Destroyed . | . . Melee . | . . Projectile . | . . AOE . | . . Terrain Rammed . | . . Walls Destroyed . | . . Machines Disabled . | . . Actions | -11 -10 --------- Run | Yrd Mat Total 539 | 47 492 Wait 31 | . 31 Move 410 | 38 372 Hop . | . . Pick Up 9 | 2 7 Fast Attach 7 | 6 1 Attach 3 | . 3 Detach . | . . Swap 3 | 1 2 Drop 1 | . 1 Fire 75 | . 75 Melee . | . . Ram . | . . Kick . | . . Crush . | . . Escape Stasis . | . . Rewire . | . . Trap . | . . Miscellaneous . | . . Route ------- -11/Scrapyard -10/Materials (discovered 2 exits: [*Mat] / [*Min]) History --------- Turn | Location | Event 21 | -11/Scrapyard | Discovered new exit (range 14) 44 | -11/Scrapyard | Entered Materials 149 | -10/Materials | Discovered new exit (range 15) 312 | -10/Materials | Build established: Mutant 368 | -10/Materials | Discovered new exit (range 15) 560 | -10/Materials | Core integrity fell below 50% 648 | -10/Materials | Core integrity fell below 20% 663 | -10/Materials | Destroyed by G-34 Mercenary with Small Laser Last Messages --------------- 00600_ G-34 Mercenary destroyed. 00600_ Switching to secondary target: G-34 Mercenary. 00600_ Destroyed Hover Unit. 00603_ K-01 Serf cleans the Matter Pump. 00609_ W-16 Scout destroyed. 00609_ G-34 Mercenary destroyed. 00609_ K-01 Serf cleans the Matter Pump. 00612_ R-06 Scavenger suffers critical hit (Destroy). 00612_ Destroyed Com. Wheel. 00617_ R-06 Scavenger destroyed. 00620_ K-01 Serf cleans the Matter Pump. 00622_ Acquired 70 matter. 00639_ Triggered Alarm Trap. 00639_ An alarm sounds. 00639_ ALERT: Alarm triggered, dispatching investigation squad. 00660_ G-34 Mercenary destroyed. 00663_ Lgt. Ion Engine destroyed. Map ----- +----------------------------------------------------+ | | | | | | | | | ?????????????????????????????????###############? | | ?????????????????????????????????## ##? | | ?????????????????????????????????##""" """ ### | | ?????????????????????????????????##"T """ ### | | ?????????????????????????????????##""" """ ### | | ?????????????????????????????????## """ ### | | ??????????????????? ?????## ! ! ### | | ??????????????#########+####?????## = * ### | | ??????????????####### ##?????###+###+######## | | ?????????????? ##?????### | | ????????????????? " ##??????## | | ??????????????????? ##??###### | | ???????????????????## #???###### | | ??????????????????? ## g##???## | | ????????????????????## g ##???## | | ????????????????????##*% ##???## " " | | ????????????????????## u!##???## "" "" | | ????????????????????## *%##???## "" "" | | ????????????????????## =##???## """ """ | | ????????????????????## !=##???## "" "" | | ????????????????????##!%*##???## """ """ | | ????????????????????##[%@####### """ """ | | ????????????????????## ####### """ """ | | ????????????????????## ### " " | | ????????????????????## | | ????????????????????## | | ????????????????????## | | ????????????????????## | | ????????#########???## * "T" | | ????????############## % """ | | ????????## ####### ######### | | ????????## ! ######### | | ????????## ! ##### ###????## | | ????????## ##+####### ###????## | | ???????### * ####### # ##" ##????## | | ???????#####+######### # ##"" ##????## | | ???????## ==! ##?## # ##| ##????## | | ???????## """ ##?## # ! ##"" < # ???? # | | ???????##=! """ ##?## # ##!! # ???? # | | ???????##!! """ ##?## # ##"" # ???? # | | ???????## ##?## # [ ##" # ???? # | | ???????## ##?## # ##### ## ???? # | | ???????## ##?## ##+####### ## ???? + | | ???????## "T" ##?## ##????? # | | ???????## """ ##?## ##????? # | | ???????############?## """ """ ""##????? # | +----------------------------------------------------+ Best States ------------- Heat Dissipation 25 Energy Generation 10 Energy Capacity 250 Matter Stores 300 Matter Capacity 300 Sight Range 16 Terrain Scan Density 10 Evasion (%) 44 Item Schematics ----------------- None Robot Schematics ------------------ None Fabricated ------------ Nothing Repaired ---------- Nothing Alien Tech Used ----------------- None Achievements -------------- None Challenges ------------ None Game ------ Seed ExpertCompanionMount Manual? 0 Play Time 00:07:31 Cumulative 28.4 hours Start 2025.10.18 @ 00:17:09 End 2025.10.18 @ 00:23:30 Sessions 1 Manual Loads 0 Difficulty Rogue Special Mode None Game No. 31 Rogue 31 Adventurer 0 Explorer 0 Win Type - Total 0 Types 0/0/0/0/0/0/0/0/0/0 Lore% 21 Gallery% 23 Achievement% 24 Wizard Run 0 Options --------- Layout 1 ASCII 0 Keyboard 0 Movement Numpad Keybinds 0 Fullscreen 1 Font 24/Smallcaps Map View 50x35 Zoom Use 0% Tactical HUD 1 Map Filters NONE Filters NONE Steam 1 RUN: 85affddc-15a5-4948-b5c8-1cb1db233b60